bitfinex/quotes_BTCUSD_20250714
["timestamp","ask_amount","ask_price","bid_price","bid_amount"]
[1752465013394,0.21237993,120610.0,120590.0,0.00207314]
[1752465013605,0.20942993,120610.0,120600.0,0.18092]
[1752465013871,0.21237993,120610.0,120600.0,0.18092]
[1752465014329,0.075,120600.0,120580.0,0.19868]
[1752465014533,0.075,120600.0,120590.0,0.18084]
[1752465014795,0.00295,120600.0,120580.0,0.19868]
[1752465015005,0.075,120600.0,120590.0,0.1808]
[1752465015210,0.075,120600.0,120580.0,0.19868]
[1752465015344,0.075,120600.0,120590.0,0.18072]
[1752465016183,0.075,120600.0,120580.0,0.19868]
[1752465016379,0.075,120600.0,120590.0,0.18068]
[1752465016606,0.075,120600.0,120580.0,0.19868]
[1752465016807,0.24357993,120600.0,120580.0,0.19868]
[1752465017010,0.049,120610.0,120590.0,0.00207314]
[1752465017144,0.13442993,120610.0,120600.0,0.18052]
[1752465017344,0.075,120600.0,120580.0,0.19868]
[1752465017765,0.075,120600.0,120590.0,0.18048]
[1752465017985,0.475,120600.0,120590.0,0.18048]
[1752465018184,0.4,120600.0,120590.0,0.18048]
[1752465018666,0.475,120600.0,120590.0,0.18044]
[1752465019644,0.4,120600.0,120590.0,0.18044]
[1752465019950,0.075,120600.0,120590.0,0.1802]
[1752465021045,0.21237993,120600.0,120580.0,0.45948224]
[1752465021518,0.08542993,120600.0,120590.0,0.18004]
[1752465021760,0.16042993,120600.0,120590.0,0.18004]
[1752465021964,0.20942993,120600.0,120590.0,0.18004]
[1752465022182,0.16042993,120600.0,120590.0,0.18004]
[1752465022621,0.16337993,120600.0,120590.0,0.36004]
[1752465023248,0.075,120600.0,120590.0,0.36004]
[1752465023466,0.049,120610.0,120590.0,0.36004]
[1752465023676,0.13442993,120610.0,120590.0,0.62084224]
[1752465023817,0.075,120600.0,120590.0,0.62084224]
[1752465024244,0.07795,120600.0,120590.0,0.62084224]
[1752465024802,0.67880041,120600.0,120590.0,0.26080224]
[1752465025003,0.67651529,120600.0,120590.0,0.26080224]
[1752465025275,0.5259,120590.0,120580.0,0.45948224]
[1752465025485,1.01651529,120590.0,120580.0,0.26080224]
[1752465025724,0.91086004,120590.0,120580.0,0.44036224]
[1752465025962,0.61427993,120590.0,120580.0,0.26080224]
[1752465026127,0.50897993,120590.0,120580.0,0.44028224]
[1752465026375,0.50337993,120590.0,120580.0,0.44028224]
[1752465026579,0.13737993,120590.0,120580.0,0.44028224]
[1752465026812,0.075,120590.0,120580.0,0.26080224]
[1752465027023,0.075,120590.0,120580.0,0.55738235]
[1752465027224,0.05195,120610.0,120580.0,0.73682235]
[1752465027444,0.13737993,120610.0,120590.0,0.29865325]
[1752465027674,0.13737993,120610.0,120590.0,0.29658011]
[1752465027675,0.075,120610.0,120590.0,0.29658011]
[1752465027883,0.049,120620.0,120600.0,0.17932]
[1752465028109,0.475,120610.0,120600.0,0.44012224]
[1752465028322,0.4,120610.0,120600.0,0.29658011]
[1752465028759,0.475,120610.0,120600.0,0.1792]
[1752465029491,0.475,120610.0,120580.0,0.557099]
[1752465029731,0.475,120610.0,120600.0,0.001]
[1752465030395,0.475,120610.0,120580.0,0.34623217]
[1752465030621,0.475,120610.0,120590.0,0.17904]
[1752465031061,0.475,120610.0,120580.0,0.35023217]
[1752465031284,0.0032,120600.0,120580.0,0.26480224]
[1752465031555,0.0782,120600.0,120590.0,0.17892]
[1752465031940,0.0782,120600.0,120590.0,0.17884]
[1752465032085,0.21262993,120600.0,120590.0,0.17884]
[1752465032288,0.21262993,120600.0,120580.0,0.26080224]
[1752465032504,0.21262993,120590.0,120570.0,0.45948224]
[1752465032704,0.21262993,120590.0,120580.0,0.1788]
[1752465033162,0.075,120590.0,120580.0,0.17872]
[1752465033985,0.079,120590.0,120580.0,0.17872]
[1752465034396,0.079,120590.0,120580.0,0.17864]
[1752465034755,0.079,120590.0,120570.0,0.45948224]
[1752465034965,0.0822,120590.0,120570.0,0.45948224]
[1752465035188,0.0822,120590.0,120580.0,0.17848]
[1752465035376,0.0822,120590.0,120570.0,0.45948224]
[1752465035575,0.0782,120590.0,120580.0,0.17844]
[1752465035796,0.0782,120590.0,120570.0,0.45948224]
[1752465035976,0.0832,120590.0,120570.0,0.45948224]
[1752465036173,0.0782,120580.0,120570.0,0.45948224]
[1752465036399,0.0782,120580.0,120570.0,0.63784224]
[1752465036632,0.0782,120580.0,120570.0,0.45948224]
[1752465036815,0.21262993,120580.0,120570.0,0.63776224]
[1752465037016,0.21262993,120580.0,120570.0,0.45948224]
[1752465037409,0.21262993,120580.0,120570.0,0.63772224]
[1752465037620,0.21762993,120580.0,120570.0,0.63772224]
[1752465037818,0.24792993,120580.0,120570.0,0.45948224]
[1752465038069,0.21762993,120580.0,120570.0,0.45948224]
[1752465038355,0.21762993,120580.0,120570.0,0.63764224]
[1752465038596,0.21762993,120580.0,120570.0,0.45948224]
[1752465038806,0.21762993,120580.0,120570.0,0.63760224]
[1752465038993,0.21762993,120580.0,120570.0,0.45948224]
[1752465039256,0.09042993,120580.0,120570.0,0.45948224]
[1752465039460,0.005,120580.0,120570.0,1.86142813]
[1752465039666,0.08,120580.0,120570.0,2.03942813]
[1752465039893,0.005,120580.0,120570.0,2.03942813]
[1752465040173,0.08,120580.0,120570.0,2.03942813]
[1752465040397,0.005,120580.0,120570.0,2.03942813]
[1752465040623,0.005,120580.0,120570.0,2.21742813]
[1752465040844,0.005,120580.0,120570.0,2.25052813]
[1752465041077,0.049,120610.0,120580.0,0.25580224]
[1752465041288,0.13442993,120610.0,120590.0,0.75973903]
[1752465041520,0.124,120610.0,120590.0,0.75766589]
[1752465041756,0.124,120610.0,120600.0,0.00207296]
[1752465041922,0.124,120610.0,120600.0,0.2578752]
[1752465042176,0.1272,120620.0,120600.0,0.25580224]
[1752465042395,0.075,120610.0,120600.0,0.25580224]
[1752465042566,0.075,120610.0,120600.0,0.61116224]
[1752465042774,0.078,120610.0,120600.0,0.61116224]
[1752465043213,0.075,120610.0,120600.0,0.61116224]
[1752465043863,0.074,120610.0,120600.0,0.61116224]
[1752465044073,0.0772,120610.0,120600.0,0.61112224]
[1752465044298,0.0772,120610.0,120600.0,0.80980224]
[1752465044492,0.0812,120610.0,120600.0,0.80980224]
[1752465045548,0.0812,120610.0,120600.0,0.45448224]
[1752465045764,0.0812,120610.0,120600.0,0.80908224]
[1752465045765,0.078,120610.0,120600.0,0.80908224]
[1752465046186,0.078,120610.0,120600.0,0.45448224]
[1752465046396,0.078,120610.0,120600.0,0.63172224]
[1752465046644,0.078,120610.0,120600.0,0.45448224]
[1752465046883,0.0812,120610.0,120600.0,0.63172224]
[1752465047518,0.21562993,120610.0,120600.0,0.45448224]
[1752465047970,0.21562993,120610.0,120600.0,0.63152224]
[1752465048238,0.21562993,120610.0,120600.0,0.45448224]
[1752465048483,0.27832993,120610.0,120600.0,0.45448224]
[1752465048769,0.24752993,120610.0,120600.0,0.45448224]
[1752465049072,0.24752993,120610.0,120600.0,0.63140224]
[1752465049311,0.21562993,120610.0,120600.0,0.63140224]
[1752465049560,0.21562993,120610.0,120600.0,0.45448224]
[1752465049801,0.21562993,120610.0,120600.0,0.63132224]
[1752465050540,0.16662993,120610.0,120600.0,0.63132224]
[1752465050785,0.21562993,120610.0,120600.0,0.63132224]
[1752465051019,0.127,120610.0,120600.0,0.64205133]
[1752465051485,0.21562993,120610.0,120600.0,0.64185133]
[1752465052248,0.21562993,120610.0,120600.0,0.64177133]
[1752465052506,0.24702993,120610.0,120600.0,0.64177275]
[1752465052744,0.13842993,120610.0,120600.0,0.93804998]
[1752465052969,0.004,120610.0,120600.0,0.76148998]
[1752465053195,0.004,120610.0,120600.0,1.26526076]
[1752465053403,0.0772,120650.0,120630.0,0.29627723]
[1752465053605,0.074,120650.0,120640.0,0.17847228]
[1752465053809,0.0772,120650.0,120640.0,0.18713051]
[1752465054014,0.0772,120650.0,120640.0,0.18705051]
[1752465054221,0.0522,120660.0,120640.0,0.55880998]
[1752465054431,0.08862993,120660.0,120650.0,0.17632]
[1752465054643,0.08542993,120660.0,120650.0,0.01073051]
[1752465054849,0.06840772,120670.0,120650.0,0.30907984]
[1752465055051,0.20842993,120670.0,120660.0,0.1762]
[1752465055297,0.20842993,120670.0,120660.0,0.43873275]
[1752465056089,0.123,120670.0,120660.0,0.43873275]
[1752465057524,0.126,120670.0,120660.0,0.43873275]
[1752465058010,0.077,120670.0,120660.0,0.43873275]
[1752465058259,0.003,120670.0,120660.0,0.43873275]
[1752465058517,0.526,120670.0,120660.0,0.43873275]
[1752465058746,0.526,120670.0,120660.0,0.438697]
[1752465058994,0.5292,120670.0,120660.0,0.438697]
[1752465059264,0.452,120670.0,120660.0,0.438697]
[1752465059506,0.523,120670.0,120660.0,0.438697]
[1752465059723,0.526,120670.0,120660.0,0.438697]
[1752465060652,0.526,120670.0,120660.0,0.613857]
[1752465060934,0.67812993,120670.0,120660.0,0.262497]
[1752465061181,1.41967541,120670.0,120660.0,0.262497]
[1752465061437,1.41967541,120670.0,120660.0,0.25923601]
[1752465061438,1.03421626,120670.0,120660.0,0.25923601]
[1752465061779,1.03421626,120670.0,120660.0,0.43467601]
[1752465061993,1.03421626,120670.0,120660.0,0.25923601]
[1752465062281,1.05033569,120670.0,120660.0,0.01068377]
[1752465062535,1.03121626,120670.0,120660.0,0.18604377]
[1752465063034,1.03621626,120670.0,120660.0,0.01068377]
[1752465063281,1.03121626,120670.0,120660.0,0.01068377]
[1752465063557,0.96321626,120670.0,120660.0,0.01068377]
[1752465063765,0.56167078,120670.0,120660.0,0.18584377]
[1752465063994,0.63567078,120670.0,120660.0,0.01067523]
[1752465064218,0.63567078,120670.0,120660.0,0.18583523]
[1752465064219,0.56167078,120670.0,120660.0,0.18583523]
[1752465064461,0.56167078,120670.0,120660.0,0.18579523]
[1752465064683,0.63567078,120670.0,120660.0,0.18579523]
[1752465064915,0.56167078,120670.0,120660.0,0.18579523]
[1752465065136,0.63567078,120670.0,120660.0,0.18579523]
[1752465065347,0.63567078,120670.0,120660.0,0.01067523]
[1752465065578,0.62967078,120670.0,120660.0,0.01067523]
[1752465065794,0.61812993,120670.0,120660.0,0.01067523]
[1752465066006,0.61582993,120670.0,120660.0,0.18559523]
[1752465066217,0.61982993,120670.0,120660.0,0.18559523]
[1752465066848,0.61982993,120670.0,120660.0,0.18551523]
[1752465067268,0.61982993,120670.0,120660.0,0.17484]
[1752465067485,0.61982993,120670.0,120660.0,0.18550996]
[1752465067890,0.61982993,120670.0,120660.0,0.18550914]
[1752465068305,0.61982993,120670.0,120660.0,0.01066914]
[1752465068508,0.61982993,120670.0,120660.0,0.18530914]
[1752465069399,0.55862993,120670.0,120660.0,0.01066914]
[1752465069849,0.55862993,120670.0,120660.0,0.18518914]
[1752465070335,0.55542993,120670.0,120660.0,0.01066914]
[1752465070792,0.21542993,120670.0,120660.0,0.01066914]
[1752465071240,0.21542993,120670.0,120660.0,0.35938914]
[1752465071450,0.081,120670.0,120660.0,0.60794138]
[1752465071669,0.081,120670.0,120660.0,0.61103138]
[1752465071911,0.007,120670.0,120660.0,0.61103138]
[1752465072109,0.049,120680.0,120660.0,0.61103138]
[1752465072317,0.074,120670.0,120660.0,1.01257686]
[1752465072534,0.081,120670.0,120660.0,0.80963138]
[1752465073121,0.076,120670.0,120660.0,0.80963138]
[1752465073929,0.076,120670.0,120660.0,0.63182138]
[1752465074132,0.21042993,120670.0,120660.0,0.45782138]
[1752465074307,0.21042993,120670.0,120660.0,0.63178138]
[1752465076171,0.21354993,120670.0,120660.0,0.45782138]
[1752465076378,0.21354993,120670.0,120660.0,0.63170138]
[1752465076788,0.21042993,120670.0,120660.0,0.45782138]
[1752465077102,0.21042993,120670.0,120660.0,0.63149897]
[1752465077524,0.21042993,120670.0,120660.0,0.63150061]
[1752465077725,0.21542993,120670.0,120660.0,0.63150061]
[1752465078528,0.21854993,120670.0,120660.0,0.45782061]
[1752465078755,0.21854993,120670.0,120660.0,0.63146061]
[1752465079106,0.21542993,120670.0,120660.0,0.63146061]
[1752465080133,0.21542993,120670.0,120660.0,0.62079224]
[1752465080366,0.21542993,120670.0,120660.0,0.63146731]
[1752465080570,0.21542993,120670.0,120660.0,0.63140731]
[1752465082269,0.21542993,120670.0,120660.0,0.45776731]
[1752465082497,0.21542993,120670.0,120660.0,0.63080731]
[1752465082775,0.21542993,120670.0,120660.0,0.62013224]
[1752465083840,0.21542993,120670.0,120660.0,0.44709224]
[1752465083989,0.57853667,120670.0,120660.0,0.44709224]
[1752465084185,0.57853667,120670.0,120660.0,0.3714]
[1752465084186,0.91853667,120670.0,120660.0,0.3714]
[1752465084842,0.62254993,120670.0,120660.0,0.3714]
[1752465085114,0.48142993,120670.0,120660.0,0.3714]
[1752465085253,0.55542993,120670.0,120660.0,0.3714]
[1752465085857,0.45243102,120620.0,120610.0,0.38594085]
[1752465086070,0.15673102,120620.0,120610.0,0.99781752]
[1752465087161,0.15673102,120620.0,120610.0,1.34281752]
[1752465087711,0.15673102,120620.0,120610.0,1.34781752]
[1752465087888,0.15673102,120620.0,120610.0,1.34797752]
[1752465090426,0.14845473,120620.0,120610.0,1.34797752]
[1752465090636,0.14845473,120620.0,120610.0,1.34897752]
[1752465090869,0.14017844,120620.0,120610.0,1.34897752]
[1752465091254,0.13190215,120620.0,120610.0,1.34897752]
[1752465091687,0.12362586,120620.0,120610.0,1.34897752]
[1752465092099,0.11534957,120620.0,120610.0,1.34997752]
[1752465092299,0.06606929,120670.0,120630.0,0.03174085]
[1752465092505,0.06606929,120670.0,120660.0,0.29598674]
[1752465092709,0.46606929,120670.0,120660.0,0.63970674]
[1752465092905,0.06606929,120670.0,120660.0,0.63970674]
[1752465093334,0.06606929,120670.0,120660.0,0.63986674]
[1752465093551,0.06646929,120690.0,120660.0,0.63986674]
[1752465093757,0.06646929,120690.0,120680.0,0.29598674]
[1752465093758,0.0004,120690.0,120680.0,0.29598674]
[1752465093960,0.0004,120690.0,120680.0,1.07951752]
[1752465094174,0.0004,120690.0,120680.0,1.10380762]
[1752465094579,0.0004,120690.0,120680.0,1.12863262]
[1752465095107,0.0004,120690.0,120680.0,0.536385]
[1752465095370,0.0004,120690.0,120680.0,0.83237174]
[1752465095808,0.0004,120690.0,120680.0,0.83253174]
[1752465096049,0.0014,120690.0,120680.0,0.74640167]
[1752465096255,0.0014,120690.0,120680.0,0.91784167]
[1752465096469,0.0014,120690.0,120680.0,0.93230252]
[1752465096673,0.0014,120690.0,120680.0,0.79114252]
[1752465096876,0.0014,120690.0,120680.0,0.96246252]
[1752465097084,0.0014,120690.0,120680.0,0.93226252]
[1752465098546,0.0014,120690.0,120680.0,0.95709028]
[1752465099363,0.0014,120690.0,120680.0,0.98897028]
[1752465099573,0.0014,120690.0,120680.0,0.81793028]
[1752465099798,0.0014,120690.0,120680.0,0.98897028]
[1752465100007,0.0014,120690.0,120680.0,0.81793028]
[1752465100211,0.49960929,120730.0,120690.0,0.35454085]
[1752465100421,0.49960929,120730.0,120700.0,0.55233667]
[1752465101666,0.50160929,120730.0,120700.0,0.38141667]
[1752465101872,0.57560929,120730.0,120710.0,0.1708]
[1752465102084,0.57360929,120730.0,120710.0,0.1708]
[1752465102468,0.57660929,120730.0,120710.0,0.1708]
[1752465102901,0.57860929,120730.0,120700.0,0.38141667]
[1752465103104,0.50260929,120730.0,120710.0,0.17064]
[1752465103405,0.57960929,120730.0,120710.0,0.17064]
[1752465103839,0.57660929,120730.0,120710.0,0.17064]
[1752465104054,0.03314,120720.0,120710.0,0.17064]
[1752465104483,0.03,120720.0,120710.0,0.17064]
[1752465104837,0.03314,120720.0,120710.0,0.17064]
[1752465105043,0.03,120710.0,120700.0,0.001]
[1752465105443,0.43,120710.0,120700.0,0.17032]
[1752465105650,0.43,120710.0,120690.0,0.66081074]
[1752465105651,0.43314,120710.0,120690.0,0.364824]
[1752465105856,0.43314,120710.0,120670.0,0.19856]
[1752465105857,0.03564,120700.0,120670.0,0.19856]
[1752465106060,0.0322,120690.0,120680.0,0.17024]
[1752465106249,0.0312,120690.0,120680.0,0.17024]
[1752465106700,0.03434,120690.0,120670.0,0.223387]
[1752465106993,0.03564,120690.0,120670.0,0.223387]
[1752465107233,0.00314,120680.0,120670.0,0.19856]
[1752465107436,0.03554,120680.0,120670.0,0.19856]
[1752465107642,0.10954,120680.0,120670.0,0.19856]
[1752465107840,0.10954,120680.0,120670.0,0.36864]
[1752465108262,0.03554,120680.0,120670.0,0.36864]
[1752465108472,0.10954,120680.0,120670.0,0.36864]
[1752465109108,0.10954,120680.0,120670.0,0.19856]
[1752465109309,0.074,120680.0,120670.0,0.36848]
[1752465109438,0.074,120680.0,120670.0,0.36844]
[1752465109639,0.074,120680.0,120670.0,0.19856]
[1752465109864,0.1065,120680.0,120670.0,0.3684]
[1752465110069,0.10964,120680.0,120670.0,0.19856]
[1752465110301,0.03564,120680.0,120670.0,0.19856]
[1752465110516,0.57315667,120680.0,120670.0,0.19856]
[1752465110741,0.57315667,120680.0,120670.0,0.36828]
[1752465110911,0.27716993,120680.0,120670.0,0.36828]
[1752465111126,0.27716993,120680.0,120670.0,0.19856]
[1752465111332,0.074,120680.0,120670.0,0.19856]
[1752465111535,0.10764,120690.0,120670.0,0.49454674]
[1752465111745,0.002,120680.0,120670.0,0.3682]
[1752465112160,0.005,120680.0,120670.0,0.19856]
[1752465112363,0.002,120680.0,120670.0,0.19856]
[1752465112567,0.002,120680.0,120670.0,0.36808]
[1752465113213,0.43664,120690.0,120670.0,0.36808]
[1752465113453,0.43664,120690.0,120680.0,0.17159159]
[1752465113691,0.43664,120690.0,120680.0,0.00207159]
[1752465113890,0.46834,120690.0,120680.0,0.17151159]
[1752465114336,0.003,120690.0,120680.0,0.50932]
[1752465114622,0.002,120690.0,120680.0,0.50932]
[1752465114886,0.002,120690.0,120680.0,0.364828]
[1752465115089,0.43624,120700.0,120680.0,0.66068537]
[1752465115376,0.003,120690.0,120680.0,0.66068537]
[1752465115591,0.003,120690.0,120680.0,0.534028]
[1752465116017,0.008,120690.0,120680.0,0.534028]
[1752465116467,0.008,120690.0,120680.0,0.364828]
[1752465116468,0.005,120690.0,120680.0,0.364828]
[1752465116671,0.005,120690.0,120680.0,0.533908]
[1752465116967,0.005,120690.0,120680.0,0.66084537]
[1752465117214,0.001,120700.0,120680.0,0.66084537]
[1752465117427,0.4,120710.0,120690.0,0.00207142]
[1752465117647,0.4307,120710.0,120700.0,0.169]
[1752465117858,0.4,120710.0,120690.0,0.29792879]
[1752465118049,0.4,120710.0,120700.0,0.16892]
[1752465118190,0.1399,120730.0,120700.0,0.29585737]
[1752465118392,0.0659,120730.0,120710.0,0.38335837]
[1752465118621,0.0659,120730.0,120720.0,0.16888]
[1752465118782,0.06904,120730.0,120700.0,0.34]
[1752465118986,0.0331,120730.0,120720.0,0.34]
[1752465119196,0.0313,120730.0,120720.0,0.34]
[1752465119398,0.06684,120730.0,120720.0,0.5088]
[1752465120196,0.14084,120730.0,120720.0,0.1688]
[1752465120402,0.06684,120730.0,120720.0,0.1688]
[1752465120649,0.14084,120730.0,120720.0,0.1688]
[1752465120798,0.14284,120730.0,120720.0,0.1688]
[1752465121416,0.0301,120710.0,120700.0,0.024822]
[1752465121672,0.0301,120710.0,120700.0,0.193342]
[1752465122016,0.06371,120720.0,120700.0,0.193342]
[1752465122446,0.0004,120740.0,120720.0,0.0526]
[1752465122649,0.0004,120740.0,120730.0,0.28598066]
[1752465122895,0.00311,120770.0,120730.0,0.45545993]
[1752465122896,0.0301,120760.0,120730.0,0.45545993]
[1752465123049,0.0301,120750.0,120730.0,0.28390993]
[1752465123247,0.0301,120750.0,120730.0,0.20167]
[1752465123480,0.0301,120750.0,120740.0,0.16832]
[1752465123678,0.0613,120750.0,120740.0,0.16832]
[1752465123882,0.1103,120750.0,120730.0,0.19848]
[1752465124086,0.47382666,120740.0,120730.0,0.19848]
[1752465124240,0.17796929,120740.0,120730.0,0.19848]
[1752465124449,0.17796929,120740.0,120730.0,0.49433737]
[1752465124450,0.0317,120740.0,120730.0,0.49433737]
[1752465124668,0.0312,120760.0,120730.0,0.7511173]
[1752465124877,0.1119,120760.0,120740.0,0.46401737]
[1752465125111,0.1119,120760.0,120740.0,0.16816]
[1752465125335,0.0629,120760.0,120740.0,0.16816]
[1752465125538,0.1119,120760.0,120740.0,0.16816]
[1752465125746,0.0629,120760.0,120740.0,0.16816]
[1752465126159,0.002,120750.0,120740.0,0.16816]
[1752465126331,0.0629,120760.0,120740.0,0.16816]
[1752465126480,0.1119,120760.0,120740.0,0.16816]
[1752465126681,0.0337,120760.0,120740.0,0.46401737]
[1752465126927,0.002,120760.0,120750.0,0.29585737]
[1752465127126,0.002,120760.0,120750.0,0.16788]
[1752465127545,0.06337333,120760.0,120750.0,0.16784]
[1752465127700,0.06337333,120760.0,120750.0,0.16991039]
[1752465127701,0.06126333,120760.0,120750.0,0.16991039]
[1752465127910,0.06126333,120760.0,120750.0,0.16784]
[1752465128121,0.06337333,120760.0,120750.0,0.192657]
[1752465128527,0.06437333,120760.0,120750.0,0.192657]
[1752465128955,0.059984,120760.0,120750.0,0.192657]
[1752465129347,0.108984,120760.0,120750.0,0.16784]
[1752465129549,0.19441393,120760.0,120750.0,0.16784]
[1752465129750,0.0792,120750.0,120740.0,0.02482]
[1752465129977,0.16773993,120750.0,120740.0,0.16756]
[1752465130153,0.8635973,120750.0,120740.0,0.16756]
[1752465130383,0.0792,120740.0,120730.0,0.223301]
[1752465130576,0.0792,120740.0,120730.0,0.366]
[1752465130724,0.08231,120740.0,120730.0,0.19848]
[1752465130924,0.48031,120740.0,120730.0,0.36596]
[1752465131587,0.08542993,120750.0,120730.0,0.19848]
[1752465131588,0.0313,120750.0,120730.0,0.19848]
[1752465131809,0.0313,120750.0,120740.0,0.16736]
[1752465132152,0.06631,120760.0,120740.0,0.29585737]
[1752465132378,0.06631,120760.0,120750.0,0.16728]
[1752465132379,0.0319,120760.0,120750.0,0.16728]
[1752465132591,0.46631,120770.0,120740.0,0.30111793]
[1752465132795,0.46631,120770.0,120750.0,0.16728]
[1752465133010,0.047,120760.0,120750.0,0.16935039]
[1752465133218,0.047,120760.0,120750.0,0.16724]
[1752465133425,0.0319,120760.0,120750.0,0.16724]
[1752465133639,0.0789,120760.0,120740.0,0.29904737]
[1752465133877,0.43741,120770.0,120750.0,0.46512776]
[1752465134084,0.0813,120770.0,120740.0,0.29904737]
[1752465134291,0.047,120760.0,120740.0,0.29904737]
[1752465134498,0.047,120760.0,120750.0,0.16712]
[1752465134729,0.0783,120770.0,120750.0,0.19400539]
[1752465134928,0.052,120760.0,120750.0,0.191935]
[1752465135159,0.07503282,120770.0,120750.0,0.191935]
[1752465135358,0.07503282,120770.0,120760.0,0.16903022]
[1752465135514,0.16046275,120770.0,120750.0,0.024815]
[1752465135679,0.07433282,120760.0,120730.0,0.19848]
[1752465136039,0.07433282,120750.0,120740.0,0.191738]
[1752465136303,0.07433282,120750.0,120740.0,0.024818]
[1752465136509,0.07433282,120750.0,120740.0,0.191738]
[1752465137145,0.04373282,120730.0,120680.0,0.00319]
[1752465137358,0.0305,120710.0,120700.0,0.024825]
[1752465137605,0.0305,120710.0,120700.0,0.191585]
[1752465137811,0.0624,120710.0,120700.0,0.191545]
[1752465138234,0.0624,120710.0,120700.0,0.024825]
[1752465138463,0.44684282,120720.0,120700.0,0.024825]
[1752465138464,0.47734282,120720.0,120700.0,0.024825]
[1752465138692,0.04373282,120720.0,120710.0,0.29585737]
[1752465138926,0.04373282,120720.0,120710.0,0.1666]
[1752465139156,0.00311,120740.0,120710.0,0.38654837]
[1752465139383,0.00311,120750.0,120720.0,0.29585737]
[1752465139606,0.0321,120750.0,120730.0,0.29585737]
[1752465139836,0.03521,120750.0,120740.0,0.16648]
[1752465140067,0.07894282,120750.0,120740.0,0.16648]
[1752465140286,0.07894282,120750.0,120720.0,0.34]
[1752465140503,0.04373282,120750.0,120730.0,0.1664]
[1752465140726,0.04373282,120750.0,120730.0,0.29585737]
[1752465140942,0.04373282,120750.0,120740.0,0.16636]
[1752465141374,0.07693282,120750.0,120740.0,0.16636]
[1752465141579,0.19677275,120750.0,120700.0,0.78435894]
[1752465141799,0.06761,120740.0,120710.0,0.25170993]
[1752465142009,0.06541498,120740.0,120710.0,0.25489993]
[1752465142373,0.06230498,120740.0,120710.0,0.25489993]
[1752465142977,0.06230498,120740.0,120710.0,0.25789993]
[1752465143389,0.06230498,120740.0,120710.0,0.66668465]
[1752465143596,0.04684282,120750.0,120720.0,0.40431005]
[1752465143796,0.08004282,120750.0,120720.0,0.00319]
[1752465144012,0.07693282,120750.0,120720.0,0.01385307]
[1752465144217,0.08004282,120750.0,120730.0,0.19086]
[1752465144394,0.08004282,120750.0,120740.0,0.1984]
[1752465144752,0.08004282,120750.0,120740.0,0.20906769]
[1752465144960,0.11214282,120750.0,120740.0,0.20906769]
[1752465146217,0.11214282,120750.0,120740.0,0.21006769]
[1752465146450,0.11214282,120750.0,120740.0,0.37586769]
[1752465146895,0.11214282,120750.0,120740.0,0.21006769]
[1752465147275,0.11214282,120750.0,120740.0,0.37578769]
[1752465147475,0.1996452,120750.0,120740.0,0.21006769]
[1752465147685,0.19757275,120750.0,120740.0,0.21006769]
[1752465147900,0.19757275,120750.0,120740.0,0.37570769]
[1752465148730,0.5986928,120750.0,120740.0,0.37570769]
[1752465148971,0.19757275,120750.0,120740.0,0.21006769]
[1752465149182,0.19757275,120750.0,120740.0,0.37570769]
[1752465149606,0.5986928,120750.0,120740.0,0.21006769]
[1752465149828,0.19757275,120750.0,120740.0,0.21006769]
[1752465150034,0.19757275,120750.0,120740.0,0.37546769]
[1752465150483,0.19757275,120750.0,120740.0,0.20906769]
[1752465150931,0.19857275,120750.0,120740.0,0.20906769]
[1752465151144,0.20157275,120750.0,120740.0,0.37438769]
[1752465151318,0.6026928,120750.0,120740.0,0.37438769]
[1752465151587,0.6016928,120750.0,120740.0,0.20906769]
[1752465151798,0.6036928,120750.0,120740.0,0.20906769]
[1752465152230,0.20257275,120750.0,120740.0,0.20906769]
[1752465152444,0.6036928,120750.0,120740.0,0.37422769]
[1752465153141,0.20257275,120750.0,120740.0,0.20906769]
[1752465153781,0.61823365,120750.0,120740.0,0.37416523]
[1752465153992,0.95823365,120750.0,120740.0,0.37416523]
[1752465154423,0.95823365,120750.0,120740.0,0.37412523]
[1752465154640,0.95823365,120750.0,120740.0,0.37404523]
[1752465154849,0.95823365,120750.0,120740.0,0.20908523]
[1752465155057,0.95823365,120750.0,120740.0,0.37396523]
[1752465155504,0.95823365,120750.0,120740.0,0.20908523]
[1752465155682,0.95823365,120750.0,120740.0,0.37392523]
[1752465158302,0.9436928,120750.0,120740.0,0.20908523]
[1752465158502,0.89995998,120750.0,120740.0,0.37364523]
[1752465158732,0.9436928,120750.0,120740.0,0.37364523]
[1752465159960,0.15883993,120750.0,120740.0,0.20908523]
[1752465160167,0.19946275,120750.0,120740.0,0.20908523]
[1752465160524,0.04873282,120750.0,120740.0,0.20908523]
[1752465161071,0.04873282,120750.0,120740.0,0.37340523]
[1752465161466,0.16666275,120750.0,120740.0,0.37336523]
[1752465161928,0.19976275,120750.0,120740.0,0.37336523]
[1752465162486,0.19976275,120750.0,120740.0,0.37324523]
[1752465163118,0.19976275,120750.0,120740.0,0.37323927]
[1752465163332,0.20278275,120750.0,120740.0,0.37323927]
[1752465163582,0.20278275,120750.0,120740.0,0.20907927]
[1752465163789,0.20278275,120750.0,120740.0,0.37319927]
[1752465166043,0.49841238,120750.0,120740.0,0.20907927]
[1752465166245,0.49841238,120750.0,120740.0,0.37283927]
[1752465168240,0.20278275,120750.0,120740.0,0.20907927]
[1752465168437,0.54278275,120750.0,120740.0,0.37259927]
[1752465168645,0.20278275,120750.0,120740.0,0.20907927]
[1752465168850,0.005,120750.0,120740.0,0.5047089]
[1752465169017,0.04873282,120750.0,120740.0,0.6712689]
[1752465169422,0.04873282,120750.0,120740.0,0.37564794]
[1752465170443,0.04873282,120750.0,120740.0,0.37256794]
[1752465170685,0.04873282,120750.0,120740.0,0.37256834]
[1752465171400,0.04873282,120750.0,120740.0,0.20782834]
[1752465172705,0.04873282,120750.0,120740.0,0.37414834]
[1752465172931,0.04873282,120750.0,120740.0,0.36476]
[1752465173387,0.04873282,120750.0,120740.0,0.20152]
[1752465173971,0.0632,120790.0,120740.0,0.64617956]
[1752465174190,0.0632,120790.0,120770.0,0.29562963]
[1752465174191,0.14862993,120790.0,120770.0,0.29562963]
[1752465174384,0.04373282,120790.0,120780.0,0.45854963]
[1752465174701,0.04373282,120790.0,120780.0,0.16292]
[1752465174901,0.04373282,120780.0,120770.0,0.32352163]